lending/lending_fUSD_20250224
["ID","MTS","AMOUNT","RATE_DAILY","PERIOD"]
[354330085,1740420632660,-171.721401,0.00020671,2]
[354330086,1740420632669,-171.721401,0.00020671,2]
[354330087,1740420632678,-171.721401,0.00020671,2]
[354330088,1740420632691,-171.721401,0.00020671,2]
[354330089,1740420632700,-171.721401,0.00020671,2]
[354330090,1740420632710,-171.721401,0.00020671,2]
[354330091,1740420632719,-171.721401,0.00020671,2]
[354330092,1740420632728,-171.721401,0.00021554,2]
[354330093,1740420632737,-171.721401,0.00021554,2]
[354330094,1740420632747,-190.6,0.000216,2]
[354330095,1740420632756,-236.61802141,0.00022003,3]
[354330096,1740420632766,-571.82,0.000228,7]
[354330097,1740420632775,-236.61802141,0.0002359,3]
[354330098,1740420632785,-284.4,0.00023651,2]
[354330099,1740420632794,-150.0,0.00024361,2]
[354330100,1740420632804,-3920.0,0.00024361,2]
[354330101,1740420632813,-1110.0,0.00024361,2]
[354330102,1740420632823,-151.299724,0.00024485,2]
[354330103,1740420632832,-205.09068044,0.00024658,2]
[354330104,1740420632842,-171.721401,0.00024658,7]
[354330105,1740420632852,-171.721408,0.00024658,7]
[354330106,1740420632861,-491.4863,0.0002493,2]
[354330107,1740420632871,-150.0,0.0002493,2]
[354330108,1740420632881,-23900.0,0.0002493,2]
[354330109,1740420632890,-1406.2124,0.0002503,2]
[354330110,1740420632901,-2015.16,0.0002513,2]
[354330111,1740420632910,-1000.0,0.0002514,2]
[354330112,1740420632920,-191.38,0.00025145,2]
[354330113,1740420632929,-236.61802141,0.00025176,4]
[354330114,1740420632939,-853.44,0.00025325,2]
[354330115,1740420632948,-164.81,0.00025394,2]
[354330116,1740420632958,-151.299724,0.00025709,2]
[354330117,1740420632968,-284.4,0.00025914,2]
[354330118,1740420632978,-1414.347,0.00025999,2]
[354330119,1740420632987,-2027.0,0.00025999,2]
[354330120,1740420632997,-1882.751,0.00025999,2]
[354330121,1740420633007,-784.0,0.00025999,2]
[354330122,1740420633017,-1424.0,0.00025999,2]
[354330123,1740420633027,-539.0,0.00025999,2]
[354330124,1740420633039,-1267.0,0.00025999,2]
[354330125,1740420633049,-909.0,0.00025999,2]
[354330126,1740420633059,-4032.0,0.00025999,2]
[354330127,1740420633068,-168.12,0.0002605,2]
[354330128,1740420633078,-1000.0,0.00026289,2]
[354330129,1740420633088,-263.91,0.00026452,120]
[354330130,1740420633097,-236.61802141,0.00026762,4]
[354330131,1740420633107,-284.4,0.00028178,2]
[354330132,1740420633116,-1000.0,0.00028282,2]
[354330133,1740420633126,-236.61802141,0.00028348,5]
[354330134,1740420633136,-150.0,0.00028426,2]
[354330135,1740420633145,-476.52,0.000287,14]
[354330136,1740420633157,-150.0,0.00029609,30]
[354330137,1740420633168,-156.11955681,0.00029609,30]
[354330138,1740420633178,-150.0,0.00029609,30]
[354330139,1740420633189,-150.0,0.00029609,30]
[354330140,1740420633199,-2574.30283996,0.00029609,30]
[354330141,1740420633209,-933.37904899,0.00029609,30]
[354330142,1740420633220,-21414.46875406,0.00029609,30]
[354330143,1740420633230,-236.61802141,0.00029934,5]
[354330144,1740420633240,-284.4,0.00030442,2]
[354330145,1740420633251,-3223.07580107,0.00031344,2]
[354330146,1740420633261,-1000.0,0.00031424,2]
[354330147,1740420633271,-1000.0,0.00031444,11]
[354330148,1740420633281,-1000.0,0.00031444,11]
[354330149,1740420633291,-1000.0,0.00031444,11]
[354330150,1740420633300,-1000.0,0.00031444,11]
[354330151,1740420633310,-1000.0,0.00031444,11]
[354330152,1740420633320,-1000.0,0.00031444,11]
[354330153,1740420633329,-1000.0,0.00031444,11]
[354330154,1740420633339,-1000.0,0.00031444,11]
[354330155,1740420633349,-1000.0,0.00031444,11]
[354330156,1740420633359,-1000.0,0.00031444,11]
[354330157,1740420633368,-236.61802141,0.00031521,6]
[354330158,1740420633379,-3223.07580099,0.00031806,2]
[354330159,1740420633388,-150.0,0.00031932,7]
[354330160,1740420633398,-150.0,0.00031932,7]
[354330161,1740420633408,-200.0,0.00032,30]
[354330162,1740420633417,-3223.07580099,0.00032268,2]
[354330163,1740420633428,-284.4,0.00032706,2]
[354330164,1740420633437,-3223.07580099,0.00032729,2]
[354330165,1740420633447,-150.0,0.00033,14]
[354330166,1740420633457,-236.61802141,0.00033107,6]
[354330167,1740420633466,-179.0,0.00033148,120]
[354330168,1740420633476,-160.0,0.00033148,120]
[354330169,1740420633486,-3223.07580099,0.00033191,2]
[354330170,1740420633496,-3223.07580099,0.00033653,2]
[354330171,1740420633506,-250.0,0.00033671,2]
[354330172,1740420633515,-3223.07580099,0.00034115,2]
[354330173,1740420633525,-1000.0,0.00034567,2]
[354330174,1740420633535,-3223.07580099,0.00034576,2]
[354330175,1740420633544,-236.61802141,0.00034693,7]
[354330176,1740420633554,-284.4,0.0003497,2]
[354330177,1740420633564,-3223.07580099,0.00035038,2]
[354330178,1740420633573,-333.58518724,0.000353,7]
[354330179,1740420633582,-437.358,0.000353,7]
[354330180,1740420633592,-168.6120684,0.0003537,2]
[354330181,1740420633601,-6235.44365654,0.0003539,3]
[354330182,1740420633611,-358.0,0.0003539,2]
[354330183,1740420633621,-1054.73872416,0.00035398,7]
[354330184,1740420633630,-500.0,0.00035399,7]
[354330185,1740420633640,-203.479205,0.00035399,7]
[354330186,1740420633650,-14586.36819061,0.00035399,120]
[354330188,1740420637457,-432.10103125,0.00035399,120]
[354330189,1740420637470,-1123.50597345,0.00035399,120]
[354330190,1740420637511,-13893.20387623,0.00035399,120]
[354330191,1740420637663,-150.0,0.00035399,7]
[354330192,1740420637707,-7500.0,0.000354,3]
[354330193,1740420637716,-234.24971029,0.000354,2]
[354330194,1740420637725,-318.72088959,0.000354,2]
[354330195,1740420637734,-131533.69293207,0.000354,2]
[354330196,1740420637743,-181.95233063,0.000354,2]
[354330197,1740420637753,-150.5,0.0003547,120]
[354330198,1740420637761,-53731.0,0.00035479,2]
[354330199,1740420637772,-150.5,0.0003548,120]
[354330201,1740420637781,-2672.33299566,0.0003548,3]
[354330203,1740420637790,-890.77766522,0.00035488,3]
[354330204,1740420637799,-150.5,0.0003549,120]
[354330205,1740420637808,-6235.44365654,0.0003549,3]
[354330206,1740420637817,-199.23708923,0.0003549,2]
[354330207,1740420637826,-199.23708923,0.0003549,2]
[354330208,1740420637835,-199.23708923,0.0003549,2]
[354330209,1740420637843,-921.66518308,0.00035498,2]
[354330210,1740420637853,-1125.0717322,0.00035498,2]
[354330211,1740420637862,-234.89357395,0.00035498,2]
[354330212,1740420637871,-2294.0,0.000355,5]
[354330213,1740420637880,-156757.70937829,0.000355,2]
[354330215,1740420639603,-6211.91949355,0.000355,2]
[354330224,1740420645813,-22410.20178556,0.000355,2]
[354330225,1740420645824,-387.46686898,0.000355,2]
[354330227,1740421256530,156.3,8.767e-05,2]
[354330230,1740421721683,302.47583305,9e-05,3]
[354330246,1740421831707,-979.02,9.828e-05,2]
[354330248,1740421831718,-5043.74002779,9.828e-05,2]
[354330249,1740421831728,-150.0,9.899e-05,2]
[354330250,1740421831737,-7668.46759686,9.9e-05,2]
[354330251,1740421831816,-356.15532581,9.9e-05,2]
[354330252,1740421831978,-449.11540826,9.9e-05,2]
[354330253,1740421832037,-2700.19296935,9.9e-05,2]
[354330254,1740421832048,-10920.91589354,9.9e-05,2]
[354330255,1740421832058,-1066.68410646,9.9e-05,2]
[354330256,1740421832070,-10898.62809354,9.9e-05,2]
[354330257,1740421832079,-6671.9266,9.9e-05,2]
[354330258,1740421832089,-267.42773406,9.999e-05,2]
[354330259,1740421832099,-1147.29728531,0.0001,2]
[354330260,1740421832110,-42861.88292778,0.0001,2]
[354330261,1740421832122,-340.17920507,0.0001,2]
[354330262,1740421832133,-253.81855932,0.0001,2]
[354330263,1740421832144,-3764.14969584,0.0001,2]
[354330264,1740421832170,-1545.88415412,0.0001,2]
[354330265,1740421832182,-1856.37551972,0.0001,2]
[354330764,1740421837613,-83519.64522095,0.0001,2]
[354330765,1740421837624,-1284.59225,0.0001,2]
[354330766,1740421837635,-1476.42,0.0001,2]
[354330767,1740421837670,-1253.26836692,0.0001,2]
[354330768,1740421837682,-555.26247137,0.0001,2]
[354330769,1740421837693,-19967.29063338,0.0001,2]
[354330770,1740421837704,-399.9331493,0.0001,2]
[354330771,1740421837724,-6015071.03749223,0.0001,2]
[354330772,1740421837733,-3984840.63577358,0.0001,2]
[354330773,1740421837834,-55518.52416181,0.0001,2]
[354330789,1740421837994,-188.09556702,0.0001,2]
[354330794,1740421838052,-315.70022424,0.0001,2]
[354330796,1740421838061,-373.40859156,0.0001,2]
[354330798,1740421838070,-5537.88511602,0.0001,2]
[354330800,1740421838079,-166.0817616,0.0001,2]
[354330802,1740421838088,-166.0817616,0.0001,2]
[354330804,1740421838097,-693.31114716,0.000103,2]
[354330806,1740421838106,-500.0,0.000104,2]
[354330808,1740421838115,-215.15029569,0.000108,2]
[354330810,1740421838125,-255.0,0.00010889,2]
[354330812,1740421838134,-500.0,0.00010999,2]
[354330814,1740421838143,-1983.62161934,0.00011,2]
[354330816,1740421838152,-500.0,0.00011,2]
[354330817,1740421838161,-300.0,0.00011098,2]
[354330820,1740421838172,-205.98460679,0.000117,2]
[354330821,1740421838181,-430.0,0.00011978,2]
[354330823,1740421838190,-9999.99,0.00012087,2]
[354330825,1740421838198,-268.32,0.00012087,2]
[354330827,1740421838207,-150.99,0.00012087,2]
[354330829,1740421838216,-37617.77820598,0.00012087,2]
[354330832,1740421838227,-1629.83238255,0.00012087,2]
[354330835,1740421838249,-4872.59941147,0.00012087,2]
[354330837,1740421838259,-843.54402736,0.00012087,2]
[354330989,1740421839716,-5771.07597264,0.00012087,2]
[354330990,1740421839725,-999.99,0.00012087,2]
[354330991,1740421839734,-150.99,0.00012087,2]
[354330992,1740421839743,-299.99,0.00012087,2]
[354330993,1740421839753,-205.9846066,0.00012218,2]
[354330994,1740421839762,-294.94598608,0.000125,2]
[354330995,1740421839771,-269.21555428,0.000125,3]
[354330996,1740421839780,-500.0,0.00012715,2]
[354330997,1740421839789,-2244.73,0.00013143,2]
[354330998,1740421839797,-12272.66830898,0.0001353,2]
[354330999,1740421839809,-797.49998,0.0001353,2]
[354331000,1740421839826,-1730.84596,0.0001353,2]
[354331001,1740421839837,-474.12831636,0.0001353,2]
[354331002,1740421839878,-375.276998,0.0001353,2]
[354331003,1740421839889,-518.56127574,0.0001353,2]
[354331004,1740421839900,-3848.37477301,0.0001353,2]
[354331005,1740421839909,-205.9846066,0.00013536,2]
[354331006,1740421839918,-179.61,0.00013699,2]
[354331007,1740421839928,-989.17810039,0.000137,2]
[354331008,1740421839942,-1395.56189961,0.000137,2]
[354331009,1740421839951,-2384.74,0.000137,2]
[354331010,1740421839959,-373.40859156,0.0001415,2]
[354331011,1740421839969,-23900.0,0.00014219,2]
[354331012,1740421839978,-16839.77679639,0.0001478,2]
[354331013,1740421839987,-205.9846066,0.00014855,2]
[354331014,1740421839996,-37414.33224744,0.000149,2]
[354331015,1740421840005,-142827.020519,0.000149,3]
[354331016,1740421840014,-1000.0,0.00014952,2]
[354331017,1740421840023,-1525.0,0.00015,3]
[354331018,1740421840032,-179.68,0.00015032,2]
[354331019,1740421840041,-150.0,0.00015068,2]
[354331020,1740421840051,-150.0,0.00015068,2]
[354331021,1740421840060,-150.0,0.00015068,2]
[354331022,1740421840070,-693.31114716,0.0001532,2]
[354331023,1740421840079,-156.3,0.00015516,2]
[354331024,1740421840088,-500.0,0.00015973,2]
[354331025,1740421840097,-232.40216146,0.00015973,2]
[354331026,1740421840106,-84167.5392751,0.00016,4]
[354331028,1740421840117,-25469.58281239,0.00016,4]
[354331031,1740421840137,-38471.5792013,0.00016,4]
[354331033,1740421840148,-3182.26041029,0.00016,4]
[354331035,1740421840159,-405.555575,0.00016,4]
[354331037,1740421840171,-258.63115522,0.00016,4]
[354331039,1740421840191,-1642.4000004,0.00016,4]
[354331040,1740421840207,-1000.0,0.00016,4]
[354331059,1740421842797,-74723.3714527,0.00016,4]
[354331060,1740421842905,-8928.0576718,0.00016,4]
[354331061,1740421842918,-1270.30000012,0.00016,4]
[354331069,1740421845635,-941.6692709,0.00011099,2]
[354331070,1740421845691,-3673.70285001,0.00011099,2]
[354331071,1740421845703,-488.07758999,0.00011099,2]
[354331072,1740421845719,-967.1442304,0.00011099,2]
[354331073,1740421845754,-4871.3999994,0.00011099,2]
[354331074,1740421845766,-16738.43016849,0.00011099,2]
[354331075,1740421845775,-96525.38832224,0.00016,4]
[354331076,1740421845812,-9309.10477623,0.00016,4]
[354331077,1740421845823,-255.06563957,0.00016,4]
[354331078,1740421845833,-1901.23752,0.00016,4]
[354331079,1740421845844,-1016.60000025,0.00016,4]
[354331080,1740421845855,-1940.56,0.00016,4]
[354331081,1740421845873,-3564.45464736,0.00016,4]
[354331082,1740421845884,-395435.54535176,0.00016,4]
[354331083,1740421845928,-2733.36047481,0.00016,4]
[354331089,1740422363159,153.35,8.767e-05,2]
[354331899,1740423031853,-534.5011,9.9e-05,2]
[354331900,1740423031862,-500.0,0.00010999,2]
[354331901,1740423031871,-554.64891776,0.00011882,2]
[354331902,1740423031881,-2198.38,0.00011882,2]
[354331903,1740423031891,-179.87,0.00011904,2]
[354331904,1740423031901,-474.82,0.0001193,2]
[354331905,1740423031911,-23900.0,0.00011956,2]
[354331906,1740423031920,-1000.0,0.00011982,2]
[354331907,1740423031929,-150.99,0.00011982,2]
[354331908,1740423031939,-200.0,0.00012046,2]
[354331909,1740423031948,-299.99,0.00012046,2]
[354331910,1740423031957,-9999.99,0.00012046,2]
[354331911,1740423031967,-499.99,0.00012046,2]
[354331912,1740423031976,-4248.3,0.00012061,2]
[354331913,1740423031985,-303.58,0.00012063,2]
[354331914,1740423031994,-7258.56,0.00012562,2]
[354331915,1740423032003,-500.0,0.00012999,2]
[354331916,1740423032013,-250.0,0.00013389,2]
[354331917,1740423032022,-500.0,0.00013447,2]
[354331918,1740423032031,-1000.0,0.00013479,2]
[354331919,1740423032040,-150.0,0.00013691,2]
[354331920,1740423032049,-179.61,0.00013699,2]
[354331921,1740423032058,-200.0,0.00013699,2]
[354331922,1740423032067,-543.47,0.00013873,2]
[354331923,1740423032076,-205.9846066,0.000139,2]
[354331924,1740423032086,-303.58,0.00014326,2]
[354331925,1740423032095,-1000.0,0.00014977,2]
[354331926,1740423032104,-300.0,0.00015068,2]
[354331927,1740423032113,-419.70103124,0.00015676,2]
[354331928,1740423032122,-337.99616615,0.00015916,2]
[354331929,1740423032131,-367.37028501,0.00015916,2]
[354331930,1740423032141,-1626.31509,0.00015973,2]
[354331931,1740423032151,-1085.32,0.00015999,2]
[354331932,1740423032160,-999.0,0.00015999,2]
[354331933,1740423032170,-500.0,0.00015999,2]
[354331934,1740423032179,-500.0,0.00015999,2]
[354331935,1740423032188,-237.161595,0.00015999,2]
[354331936,1740423032197,-17398.50091784,0.00016,4]
[354331937,1740423032209,-692.48613178,0.00016,4]
[354331943,1740423032326,-624.96387232,0.00016,4]
[354331948,1740423032368,-10046.77,0.00016,4]
[354331951,1740423032379,-472.9725,0.00016,4]
[354332208,1740423037814,-419.70103125,0.00015843,2]
[354332209,1740423037823,-5615.54134615,0.00016,4]
[354332210,1740423037869,-460.5428406,0.00016,4]
[354332215,1740423039964,-532.82766966,0.00016,4]
[354332216,1740423040176,-1030.23156814,0.00016,4]
[354332237,1740423043482,-369.12270208,0.00016,4]
[354332238,1740423043494,-9459.45000001,0.00016,4]
[354332239,1740423043505,-4725.0,0.00016,4]
[354332240,1740423043516,-1509.09021663,0.00016,4]
[354332241,1740423043588,-292.8706028,0.00016,4]
[354332243,1740423046237,-1127.07900657,0.00016,4]
[354332244,1740423046249,-341.0157132,0.00016,4]
[354332246,1740423046309,-1234.45613978,0.00016,4]
[354332247,1740423046321,-15677.98096301,0.00016,4]
[354332252,1740423327334,-179.61,0.00013699,2]
[354332253,1740423327357,-520.0,0.00015186,2]
[354332254,1740423327379,-275.81,0.00015263,2]
[354332255,1740423327401,-194.80966566,0.00015699,2]
[354332256,1740423327427,-700.0,0.000157,5]
[354332257,1740423327451,-300.0,0.00015799,2]
[354332258,1740423327474,-1500.0,0.000158,5]
[354332259,1740423327496,-2714.5223119,0.000158,2]
[354332260,1740423327518,-2500.0,0.000159,2]
[354332261,1740423327539,-2500.0,0.000159,2]
[354332262,1740423327564,-2300.0,0.000159,5]
[354332263,1740423327586,-266.72042256,0.000159,2]
[354332264,1740423327608,-1000.0,0.000159,2]
[354332265,1740423327631,-2500.0,0.000159,2]
[354332266,1740423327653,-330.6332565,0.000159,2]
[354332267,1740423327677,-205.9846066,0.000159,2]
[354332268,1740423327700,-489.02301771,0.000159,2]
[354332269,1740423327723,-150.0,0.00015989,2]
[354332270,1740423327746,-15981.6782087,0.0001599,2]
[354332271,1740423327770,-15981.6782087,0.0001599,2]
[354332272,1740423327793,-1355.26257,0.00015999,2]
[354332273,1740423327817,-999.0,0.00015999,2]
[354332274,1740423327839,-1040.1,0.00015999,2]
[354332275,1740423327863,-500.0,0.00015999,2]
[354332276,1740423327887,-500.0,0.00015999,2]
[354332277,1740423327908,-435.0246704,0.00015999,2]
[354332278,1740423327931,-441.0744725,0.00015999,2]
[354332279,1740423327957,-129402.06858877,0.00016,2]
[354332280,1740423331909,-509.39429488,0.00015999,5]
[354332281,1740423331933,-99490.60570512,0.00016,2]
[354332282,1740423332800,-100000.0,0.00016,2]
[354332283,1740423333477,-100000.0,0.00016,2]
[354332284,1740423334099,-100000.0,0.00016,2]
[354332286,1740423520319,290.17,8.767e-05,2]
[354332287,1740423635881,150.0,0.00014016,30]
[354332289,1740423996411,1736.56677973,0.0002,120]
[354332421,1740424232028,-550.0,0.00013,2]
[354332422,1740424232038,-273.22,0.00013241,2]
[354332423,1740424232048,-179.61,0.00013699,2]
[354332424,1740424232057,-150.0,0.000144,2]
[354332425,1740424232066,-152.32170862,0.000144,2]
[354332426,1740424232258,-150.0,0.000144,2]
[354332427,1740424232276,-1500.0,0.00014876,2]
[354332428,1740424232286,-200.0,0.00014905,2]
[354332429,1740424232295,-250.0,0.00014935,2]
[354332430,1740424232304,-500.0,0.00014963,2]
[354332431,1740424232313,-300.0,0.00015127,2]
[354332432,1740424232323,-7436.34,0.00015128,2]
[354332433,1740424232334,-1607.94750136,0.00015232,2]
[354332434,1740424232345,-1143.05249864,0.00015232,2]
[354332435,1740424232354,-1000.0,0.00015325,2]
[354332436,1740424232363,-6217.65,0.00015325,2]
[354332437,1740424232374,-273.22,0.00015505,2]
[354332438,1740424232383,-1000.0,0.000156,5]
[354332439,1740424232394,-150.0,0.0001565,2]
[354332440,1740424232407,-456.7454,0.000157,2]
[354332441,1740424232416,-2000.0,0.000157,5]
[354332442,1740424232425,-419.7010312,0.00015754,2]
[354332443,1740424232435,-150.0,0.0001578,2]
[354332444,1740424232444,-3100.0,0.000158,5]
[354332445,1740424232453,-150.0,0.00015899,2]
[354332446,1740424232463,-1000.0,0.000159,2]
[354332448,1740424232472,-5350.1794,0.000159,2]
[354332450,1740424232485,-222.7013,0.000159,2]
[354332452,1740424232494,-5216.33250959,0.000159,2]
[354332456,1740424232521,-1409.62459041,0.000159,2]
[354332458,1740424232531,-784.02107906,0.000159,2]
[354332460,1740424232540,-297.56993085,0.000159,2]
[354332462,1740424232549,-4100.0,0.000159,5]
[354332464,1740424232558,-205.9846066,0.000159,2]
[354332466,1740424232567,-13486.0584375,0.0001599,2]
[354332468,1740424232578,-1469.69864955,0.0001599,2]
[354332470,1740424232590,-540.64366312,0.0001599,2]
[354332497,1740424232852,-0.0025356,0.0001599,2]
[354332500,1740424232871,-468.53761822,0.0001599,2]
[354332504,1740424232897,-1124.0,0.0001599,2]
[354332507,1740424232920,-518.63935017,0.0001599,2]
[354332509,1740424232935,-1559.35633688,0.0001599,2]
[354332515,1740424238042,-6289.87471537,0.0001599,2]
[354332516,1740424238053,-2099.864192,0.0001599,2]
[354332517,1740424238094,-393.69097478,0.0001599,2]
[354332518,1740424238105,-502.36352681,0.0001599,2]
[354332519,1740424238114,-220.0,0.0001599,2]
[354332520,1740424238123,-108.58446306,0.00015999,2]
[354332521,1740424238148,-391.41553694,0.00015999,2]
[354332522,1740424238157,-500.0,0.00015999,2]
[354332523,1740424238166,-464.77662929,0.00015999,2]
[354332524,1740424238175,-500.0,0.00015999,2]
[354332525,1740424238184,-2912.957,0.00015999,2]
[354332526,1740424238194,-205.717,0.00015999,2]
[354332527,1740424238203,-996.76,0.00015999,2]
[354332528,1740424238212,-999.0,0.00015999,2]
[354332529,1740424238222,-206.28683612,0.00016,2]
[354332530,1740424238233,-254.69714744,0.00016,5]
[354332531,1740424238243,-17352.29280006,0.00016,2]
[354332532,1740424238254,-392.59342809,0.00016,2]
[354332533,1740424238269,-18382.2,0.00016,2]
[354332534,1740424238281,-5680.44560385,0.00016,2]
[354332535,1740424238292,-6337.06,0.00016,2]
[354332536,1740424238304,-7053.23970044,0.00016,2]
[354332537,1740424238316,-9884.68407191,0.00016,2]
[354332547,1740424240186,-336.3728395,0.00016,2]
[354332548,1740424240205,-268.23906165,0.00016,2]
[354332549,1740424240312,-284.57759667,0.00016,2]
[354332550,1740424240324,-2259.4,0.00016,2]
[354332551,1740424240416,-130321.829,0.00016,2]
[354332570,1740424243075,-7485.54946013,0.00016,2]
[354332571,1740424243255,-6478.33984435,0.00016,2]
[354332574,1740424246018,-2432.51808868,0.00016,2]
[354332575,1740424246072,-541.90500002,0.00016,2]
[354332578,1740424530763,155.99,8.767e-05,2]
[354332900,1740425432206,-692.5626787,9.7e-05,3]
[354332901,1740425432316,-107.4373213,9.7e-05,3]
[354332902,1740425432326,-576.60390403,9.8e-05,3]
[354332903,1740425432423,-1123.39609597,9.8e-05,3]
[354332904,1740425432432,-2366.67888074,9.9e-05,3]
[354332905,1740425432478,-133.32111926,9.9e-05,3]
[354332906,1740425432487,-3661.63711865,9.9e-05,2]
[354332907,1740425432496,-1997.3798,9.9e-05,2]
[354332908,1740425432506,-3639.97389562,9.999e-05,2]
[354332909,1740425432515,-150.0,9.999e-05,2]
[354332910,1740425432524,-162.75295881,9.999e-05,2]
[354332911,1740425432535,-99361.89607761,0.0001,2]
[354332912,1740425432556,-3081.97164808,0.0001,2]
[354332913,1740425432567,-29932.55788102,0.0001,2]
[354332914,1740425432578,-1000.0,0.0001,2]
[354332915,1740425432592,-5785.77617514,0.0001,2]
[354332916,1740425432603,-65239.6047972,0.0001,2]
[354332950,1740425438235,-3353.17410737,0.0001,2]
[354332951,1740425438346,-4925.70590495,0.0001,2]
[354332952,1740425438357,-9734.75920436,0.0001,2]
[354332953,1740425438400,-26970.95466711,0.0001,2]
[354332954,1740425438513,-404.19576041,0.0001,2]
[354332955,1740425438525,-661.21728265,0.0001,2]
[354332956,1740425438540,-735.0921918,0.0001,2]
[354332958,1740425440303,-974.12804299,0.0001,2]
[354332959,1740425440463,-489.12,0.0001,2]
[354332960,1740425440519,-8000.0,0.0001,2]
[354332961,1740425440531,-5515.35101685,0.0001,2]
[354332962,1740425440575,-473.1109063,0.0001,2]
[354332963,1740425440621,-4804.53416695,0.0001,2]
[354332964,1740425440644,-1947.85522753,0.0001,2]
[354333047,1740425443222,-833.87987711,0.0001,2]
[354333048,1740425443333,-1164.90682513,0.0001,2]
[354333051,1740425443839,-268035.12978049,0.0001,2]
[354333052,1740425443850,-784.08918087,0.0001,2]
[354333053,1740425446225,-317.83985984,0.0001,2]
[354333054,1740425446237,-9663.39455999,0.0001,2]
[354333055,1740425446248,-890.63976209,0.0001,2]
[354333056,1740425446290,-10556.86703974,0.0001,2]
[354333057,1740425446405,-22410.20178556,0.0001,2]
[354333058,1740425446417,-1458.85445932,0.0001,2]
[354333059,1740425446461,-341.95908273,0.0001,2]
[354333060,1740425446472,-4706.11589993,0.0001,2]
[354333080,1740425699218,153.35,8.767e-05,2]
[354333803,1740426632378,-470.47,9.7e-05,3]
[354333805,1740426632390,-129.53,9.7e-05,3]
[354333807,1740426632399,-395.97891996,9.8e-05,2]
[354333809,1740426632410,-630.88197967,9.8e-05,2]
[354333811,1740426632536,-543.86946,9.8e-05,2]
[354333812,1740426632547,-759.63564037,9.8e-05,2]
[354333813,1740426632557,-164.574,9.8e-05,2]
[354333814,1740426632566,-72.73035963,9.8e-05,3]
[354333815,1740426632589,-305.8093252,9.8e-05,3]
[354333816,1740426632670,-340.47051258,9.8e-05,3]
[354333817,1740426632681,-300.27722805,9.8e-05,3]
[354333818,1740426632693,-180.71257454,9.8e-05,3]
[354333819,1740426632702,-209.58772082,9.9e-05,3]
[354333820,1740426632784,-1590.41227918,9.9e-05,3]
[354333821,1740426632795,-150.0,9.973e-05,2]
[354333822,1740426632804,-955.23,9.999e-05,2]
[354333823,1740426632813,-435510.91366121,0.0001,2]
[354333824,1740426632825,-1361.11506792,0.0001,2]
[354333825,1740426632839,-9304.86085546,0.0001,2]
[354333826,1740426632855,-4071.83173335,0.0001,2]
[354333828,1740426632866,-3347.97,0.0001,2]
[354333830,1740426632877,-5163.90525654,0.0001,2]
[354333832,1740426632889,-5695.5,0.0001,2]
[354334296,1740426638310,-46789.23180688,0.0001,2]
[354334297,1740426638322,-2336.68164723,0.0001,2]
[354334299,1740426638364,-724.5,0.0001,2]
[354334300,1740426638436,-396.94209934,0.0001,2]
[354334301,1740426638447,-12754.68035991,0.0001,2]
[354334302,1740426638459,-530.41129679,0.0001,2]
[354334303,1740426638470,-1612.02344774,0.0001,2]
[354334304,1740426638480,-484.37759146,0.0001,2]
[354334317,1740426638760,-626.21687288,0.0001,2]
[354334320,1740426638772,-65824.69710222,0.0001,2]
[354334324,1740426638786,-24011.93771927,0.0001,2]
[354334327,1740426638798,-597.8750025,0.0001,2]
[354334331,1740426638811,-4079.38824232,0.0001,2]
[354334440,1740426640474,-682.54463803,0.0001,2]
[354334606,1740426643530,-220461.91866092,0.0001,2]
[354334621,1740426643652,-530.869583,0.0001,2]
[354334624,1740426643666,-28385.00666737,0.0001,2]
[354334626,1740426643679,-5511.61374963,0.0001,2]
[354334628,1740426643691,-653.652976,0.0001,2]